bitfinex/quotes_SOLUSD_20250402
["timestamp","ask_amount","ask_price","bid_price","bid_amount"]
[1743601587691,7.8672,127.11,127.07,20.0]
[1743601588295,46.42353879,127.11,127.1,20.0]
[1743601588454,46.42353879,127.11,127.1,10.98]
[1743601588655,46.42353879,127.11,127.06,20.0]
[1743601588853,27.5609,127.13,127.04,20.0]
[1743601588854,46.42353879,127.07,127.04,20.0]
[1743601589154,7.8696,127.07,127.05,10.98]
[1743601589370,46.42353879,127.06,127.02,305.84]
[1743601589580,46.42353879,127.06,127.02,294.86]
[1743601589581,92.84707758,127.03,127.02,294.86]
[1743601589959,6.4257,127.05,127.0,10.98]
[1743601590169,46.42353879,127.01,127.0,10.98]
[1743601590367,46.42353879,127.02,127.0,10.98]
[1743601590573,46.42353879,127.01,127.0,10.98]
[1743601590763,6.4257,127.05,127.0,10.98]
[1743601590957,46.42353879,127.01,127.0,10.98]
[1743601591157,27.5503,127.04,127.0,10.98]
[1743601591354,46.42353879,127.01,127.0,10.98]
[1743601591978,46.42353879,127.04,127.02,20.0]
[1743601592182,7.8696,127.07,127.02,20.0]
[1743601592577,46.42353879,127.08,127.02,20.0]
[1743601592578,46.42353879,127.06,127.02,20.0]
[1743601592879,46.42353879,127.06,127.05,20.0]
[1743601593085,7.8691,127.08,127.05,20.0]
[1743601593285,27.5381,127.1,127.06,10.9]
[1743601593466,46.42353879,127.07,127.06,10.9]
[1743601593665,46.42353879,127.07,127.01,20.0]
[1743601593859,46.42353879,127.02,127.01,20.0]
[1743601594069,46.42353879,127.08,127.01,20.0]
[1743601594273,46.42353879,127.02,126.99,314.66]
[1743601594472,20.0,127.05,126.99,314.66]
[1743601594868,20.0,127.05,127.0,10.88]
[1743601595071,46.42353879,127.08,127.0,10.88]
[1743601595273,46.42353879,127.02,127.0,10.88]
[1743601595582,27.5437,127.07,127.03,20.0]
[1743601595966,46.42353879,127.04,127.03,20.0]
[1743601596160,27.5437,127.07,127.01,20.0]
[1743601596381,7.8696,127.07,127.05,20.0]
[1743601596594,0.03,127.13,127.07,20.0]
[1743601596597,7.8684,127.09,127.07,20.0]
[1743601596881,7.8665,127.12,127.08,10.86]
[1743601597083,7.8665,127.12,127.09,314.54]
[1743601597273,46.42353879,127.12,127.09,314.54]
[1743601597476,46.42353879,127.11,127.09,314.54]
[1743601597678,27.5623,127.13,127.09,314.54]
[1743601597972,46.42353879,127.11,127.09,314.54]
[1743601598174,27.5623,127.13,127.09,314.54]
[1743601598381,7.8959,127.13,127.11,20.0]
[1743601598694,46.42353879,127.12,127.11,20.0]
[1743601598870,0.03,127.13,127.11,20.14216157]
[1743601599064,0.03,127.13,127.12,0.14216157]
[1743601599379,0.03,127.13,127.12,18.79181043]
[1743601599761,46.45353879,127.13,127.11,20.0]
[1743601599987,46.45353879,127.13,127.09,294.54]
[1743601599988,0.03,127.13,127.12,10.8]
[1743601600184,46.45353879,127.13,127.12,10.8]
[1743601600481,46.45353879,127.13,127.07,10.92]
[1743601600661,0.03,127.13,127.07,10.92]
[1743601600868,0.03,127.13,127.07,30.92]
[1743601601284,54.29133879,127.1,127.07,30.92]
[1743601601583,27.5373,127.1,127.07,10.92]
[1743601601783,27.5373,127.1,127.07,30.92]
[1743601601964,46.42353879,127.08,127.07,30.92]
[1743601602161,46.42353879,127.09,127.07,30.92]
[1743601602481,0.03,127.13,127.12,20.0]
[1743601602668,0.03,127.13,127.1,20.0]
[1743601602669,46.45353879,127.13,127.1,20.0]
[1743601602868,0.03,127.13,127.12,20.0]
[1743601603268,46.45353879,127.13,127.12,20.0]
[1743601603465,0.03,127.13,127.12,20.0]
[1743601604489,0.03,127.13,127.12,20.14216157]
[1743601605003,0.03,127.13,127.12,31.0]
[1743601605886,0.03,127.13,127.12,30.98]
[1743601606385,46.45353879,127.13,127.12,30.98]
[1743601606584,46.45353879,127.13,127.12,10.98]
[1743601606966,0.03,127.13,127.12,10.98]
[1743601607479,46.45353879,127.13,127.08,20.0]
[1743601607681,46.42353879,127.09,127.06,20.0]
[1743601607865,46.42353879,127.08,127.07,10.96]
[1743601608067,0.03,127.13,127.08,20.0]
[1743601608271,46.42353879,127.11,127.08,20.0]
[1743601608466,0.03,127.13,127.1,20.0]
[1743601608870,0.03,127.13,127.12,20.0]
[1743601609190,0.03,127.13,127.12,20.14216157]
[1743601609584,0.03,127.13,127.12,38.79181043]
[1743601609903,0.03,127.13,127.12,59.1706819]
[1743601610106,0.03,127.13,127.12,51.3041819]
[1743601610315,0.03,127.13,127.12,59.1706819]
[1743601610667,0.03,127.13,127.12,51.3041819]
[1743601610882,0.03,127.13,127.12,49.73181043]
[1743601611306,57.08143339,127.2,127.19,20.0]
[1743601611472,57.08143339,127.2,127.19,30.96]
[1743601611867,2.7962946,127.2,127.19,30.96]
[1743601612094,2.7962946,127.2,127.19,45.57356157]
[1743601612279,0.03,127.26,127.25,20.0]
[1743601612477,7.8553,127.31,127.28,20.0]
[1743601612794,46.42353879,127.31,127.29,294.28]
[1743601613093,27.4853,127.34,127.3,20.0]
[1743601613304,27.4853,127.34,127.31,11.16]
[1743601613597,46.42353879,127.33,127.32,20.0]
[1743601613769,27.4853,127.34,127.32,20.0]
[1743601613973,46.42353879,127.33,127.31,11.16]
[1743601614210,92.84707758,127.32,127.29,294.28]
[1743601614502,46.42353879,127.3,127.29,294.28]
[1743601615073,46.42353879,127.3,127.27,294.14]
[1743601615277,98.96167758,127.28,127.23,294.14]
[1743601615478,46.42353879,127.24,127.23,294.14]
[1743601616601,46.42353879,127.24,127.21,11.18]
[1743601616821,46.42353879,127.22,127.21,11.18]
[1743601617405,54.28383879,127.22,127.21,11.18]
[1743601617726,27.5017,127.27,127.21,11.18]
[1743601617884,46.42353879,127.26,127.23,20.0]
[1743601618084,7.8573,127.27,127.25,20.0]
[1743601618684,19.6354,127.33,127.27,20.0]
[1743601618889,46.42353879,127.31,127.28,11.24]
[1743601619284,19.6354,127.33,127.28,11.24]
[1743601619507,7.856,127.29,127.28,11.24]
[1743601620015,7.8554,127.31,127.29,20.0]
[1743601620381,46.42353879,127.3,127.29,20.0]
[1743601620793,46.42353879,127.3,127.28,11.24]
[1743601620999,46.42353879,127.29,127.28,11.24]
[1743601621284,27.4925,127.31,127.28,31.24]
[1743601621503,7.856,127.29,127.28,31.24]
[1743601621813,73.91963879,127.29,127.26,20.0]
[1743601622016,46.42353879,127.27,127.2,0.14216157]
[1743601622221,46.42353879,127.25,127.22,13.57240822]
[1743601622690,46.42353879,127.24,127.23,294.06]
[1743601623022,46.42353879,127.24,127.22,11.14]
[1743601623186,46.42353879,127.23,127.19,294.02]
[1743601623384,46.42353879,127.2,127.19,294.02]
[1743601623585,54.28513879,127.2,127.19,294.02]
[1743601624392,27.506,127.25,127.21,13.57240822]
[1743601624587,46.42353879,127.22,127.21,11.16]
[1743601625302,46.42353879,127.22,127.19,294.02]
[1743601625506,27.5178,127.19,127.14,13.57240822]
[1743601625699,73.94133879,127.19,127.16,13.57240822]
[1743601625908,46.42353879,127.18,127.14,13.57240822]
[1743601626085,46.42353879,127.18,127.16,13.57240822]
[1743601626415,7.861,127.21,127.17,0.14216157]
[1743601626609,46.42353879,127.2,127.18,11.22]
[1743601626796,73.93703879,127.21,127.18,24.79240822]
[1743601626986,46.42353879,127.19,127.18,11.22]
[1743601627510,39.2927,127.25,127.18,11.22]
[1743601627511,66.7975,127.25,127.18,11.22]
[1743601628019,27.5048,127.25,127.21,13.57240822]
[1743601628191,46.42353879,127.24,127.21,13.57240822]
[1743601628516,46.42353879,127.22,127.19,13.57240822]
[1743601628807,46.42353879,127.21,127.19,13.57240822]
[1743601629023,46.42353879,127.21,127.18,11.22]
[1743601629191,27.5048,127.25,127.18,11.22]
[1743601629192,46.42353879,127.2,127.18,11.22]
[1743601629397,46.42353879,127.22,127.19,13.57240822]
[1743601630001,27.5048,127.25,127.19,13.57240822]
[1743601630332,73.92833879,127.25,127.21,13.57240822]
[1743601630489,7.8585,127.25,127.21,13.57240822]
[1743601630687,7.8579,127.26,127.23,13.57240822]
[1743601630891,7.8579,127.26,127.24,11.18]
[1743601631401,7.8579,127.26,127.25,13.57240822]
[1743601631605,7.8573,127.27,127.25,13.57240822]
[1743601632818,7.8573,127.27,127.26,294.02]
[1743601634497,85.69583879,127.32,127.27,13.57240822]
[1743601634498,7.8568,127.28,127.27,13.57240822]
[1743601634803,7.8568,127.28,127.24,11.32216157]
[1743601634804,19.6311,127.35,127.32,13.57240822]
[1743601635006,46.42353879,127.34,127.33,11.12]
[1743601635200,19.6311,127.35,127.33,11.12]
[1743601635600,54.27643879,127.34,127.33,11.12]
[1743601636009,73.90883879,127.34,127.27,13.57240822]
[1743601636213,46.42353879,127.3,127.27,13.57240822]
[1743601636409,27.4853,127.34,127.27,13.57240822]
[1743601636713,46.42353879,127.3,127.27,13.57240822]
[1743601637122,46.42353879,127.3,127.28,11.08]
[1743601637619,19.6356,127.32,127.28,11.08]
[1743601637835,66.05913879,127.32,127.29,13.57240822]
[1743601637996,7.8536,127.33,127.29,13.57240822]
[1743601638202,46.42353879,127.32,127.29,13.57240822]
[1743601638707,7.8536,127.33,127.29,13.57240822]
[1743601638912,7.8536,127.33,127.31,13.57240822]
[1743601639246,7.8517,127.36,127.31,13.57240822]
[1743601639520,7.8517,127.36,127.35,13.57240822]
[1743601639720,54.27523879,127.36,127.35,11.02]
[1743601639913,73.90453879,127.36,127.31,13.57240822]
[1743601640240,7.8517,127.36,127.35,13.57240822]
[1743601640445,7.8517,127.36,127.33,13.57240822]
[1743601640723,7.8517,127.36,127.35,13.57240822]
[1743601641021,0.03,127.37,127.35,13.57240822]
[1743601641324,0.03,127.37,127.35,24.63240822]
[1743601641699,7.8811,127.37,127.35,24.63240822]
[1743601642032,54.30463879,127.37,127.35,24.63240822]
[1743601642215,46.42353879,127.36,127.35,11.06]
[1743601642526,0.03,127.37,127.35,24.63240822]
[1743601642703,0.03,127.37,127.36,293.88]
[1743601642905,46.45353879,127.37,127.36,293.88]
[1743601643105,46.45353879,127.37,127.36,304.92]
[1743601643307,46.45353879,127.37,127.36,293.88]
[1743601643501,46.45353879,127.37,127.3,13.57240822]
[1743601643706,46.42353879,127.31,127.28,13.57240822]
[1743601643929,7.8554,127.3,127.28,13.57240822]
[1743601644814,7.8554,127.3,127.29,11.02]
[1743601645013,39.263,127.35,127.29,11.02]
[1743601645014,7.8548,127.31,127.3,13.57240822]
[1743601646603,54.27833879,127.31,127.3,13.57240822]
[1743601646827,7.8548,127.31,127.3,13.57240822]
[1743601647035,7.8536,127.33,127.32,13.57240822]
[1743601647326,27.4832,127.35,127.32,13.57240822]
[1743601647643,46.42353879,127.34,127.32,13.57240822]
[1743601647813,27.4897,127.32,127.29,13.57240822]
[1743601648129,27.4897,127.32,127.3,10.92]
[1743601648130,73.91323879,127.32,127.3,10.92]
[1743601648315,7.8542,127.32,127.31,13.57240822]
[1743601648516,7.8537,127.33,127.31,13.57240822]
[1743601649119,54.27723879,127.33,127.31,13.57240822]
[1743601649318,7.8537,127.33,127.31,13.57240822]
[1743601649719,54.27723879,127.33,127.31,13.57240822]
[1743601649921,7.8537,127.33,127.31,13.57240822]
[1743601650434,46.42353879,127.32,127.29,13.57240822]
[1743601650633,46.42353879,127.32,127.3,10.88]
[1743601650933,27.4877,127.33,127.3,10.88]
[1743601651118,46.42353879,127.32,127.3,10.88]
[1743601651314,46.42353879,127.31,127.3,10.88]
[1743601651516,46.42353879,127.31,127.24,8.2425]
[1743601651517,46.42353879,127.31,127.27,13.57240822]
[1743601651728,46.42353879,127.28,127.22,13.57240822]
[1743601652031,46.42353879,127.28,127.21,0.14216157]
[1743601652032,19.634,127.33,127.27,13.57240822]
[1743601652329,46.42353879,127.29,127.25,13.57240822]
[1743601652538,46.42353879,127.32,127.25,13.57240822]
[1743601652836,46.92353879,127.32,127.26,304.84]
[1743601653028,46.42353879,127.27,127.26,304.84]
[1743601653328,46.42353879,127.32,127.26,304.84]
[1743601653521,19.634,127.33,127.26,304.84]
[1743601653715,46.42353879,127.29,127.27,13.57240822]
[1743601653921,46.42353879,127.32,127.26,304.84]
[1743601654229,46.42353879,127.3,127.27,13.57240822]
[1743601654607,46.42353879,127.28,127.26,304.84]
[1743601654807,46.42353879,127.27,127.22,13.57240822]
[1743601655022,46.42353879,127.23,127.22,293.82]
[1743601655219,6.1404,127.27,127.22,293.82]
[1743601655220,6.1404,127.27,127.22,304.82]
[1743601655419,46.42353879,127.23,127.22,304.82]
[1743601656033,46.42353879,127.26,127.22,304.82]
[1743601656329,54.28323879,127.23,127.22,304.82]
[1743601656535,7.8597,127.23,127.22,304.82]
[1743601656732,7.8579,127.26,127.22,304.82]
[1743601656920,46.42353879,127.25,127.22,304.82]
[1743601657119,7.8579,127.26,127.22,304.82]
[1743601657120,46.42353879,127.24,127.22,304.82]
[1743601657715,46.42353879,127.23,127.22,304.82]
[1743601657922,73.92623879,127.26,127.22,304.82]
[1743601658128,54.28323879,127.23,127.22,304.82]
[1743601658518,7.8597,127.23,127.22,304.82]
[1743601658714,54.28323879,127.23,127.22,304.82]
[1743601659113,113.23153879,127.23,127.18,18.4876809]
[1743601659333,46.42353879,127.19,127.18,18.4876809]
[1743601659652,41.76381745,127.19,127.18,18.4876809]
[1743601659854,66.808,127.23,127.18,18.4876809]
[1743601660053,46.42353879,127.19,127.18,18.4876809]
[1743601660221,54.28573879,127.19,127.18,18.4876809]
[1743601660420,54.28573879,127.19,127.18,29.3676809]
[1743601660647,7.8622,127.19,127.18,29.3676809]
[1743601660850,73.94133879,127.19,127.13,13.63540822]
[1743601661152,46.42353879,127.15,127.13,13.63540822]
[1743601661526,46.42353879,127.15,127.13,0.063]
[1743601661733,46.42353879,127.14,127.13,0.063]
[1743601662147,54.28883879,127.14,127.13,0.063]
[1743601662360,54.28883879,127.14,127.13,10.943]
[1743601662839,100.71237758,127.14,127.13,304.903]
[1743601663252,120.37567758,127.14,127.13,293.98]
[1743601663636,73.95213879,127.14,127.13,293.98]
[1743601664250,120.37567758,127.14,127.13,293.98]
[1743601664865,120.37567758,127.14,127.09,13.57240822]
[1743601665042,120.37567758,127.14,127.07,13.57240822]
[1743601665043,46.42353879,127.1,127.07,13.57240822]
[1743601665238,73.95213879,127.14,127.05,13.63540822]
[1743601665239,46.42353879,127.08,127.05,13.63540822]
[1743601665433,46.42353879,127.09,127.05,13.63540822]
[1743601665651,113.27883879,127.14,127.07,13.57240822]
[1743601665833,46.42353879,127.08,127.07,13.57240822]
[1743601666351,113.27883879,127.14,127.09,13.57240822]
[1743601666352,27.5286,127.14,127.09,13.57240822]
[1743601666556,46.42353879,127.12,127.09,13.57240822]
[1743601666747,27.5286,127.14,127.06,8.01206157]
[1743601666748,7.8653,127.14,127.11,13.57240822]
[1743601667145,19.6558,127.19,127.13,13.57240822]
[1743601667364,46.42353879,127.16,127.13,13.57240822]
[1743601667542,19.6558,127.19,127.15,13.57240822]
[1743601667734,46.42353879,127.17,127.16,10.32]
[1743601668354,54.28693879,127.17,127.16,10.32]
[1743601668756,1.5067,127.16,127.07,13.57240822]
[1743601668944,46.42353879,127.09,127.07,13.57240822]
[1743601669453,46.42353879,127.08,127.07,13.57240822]
[1743601669639,46.42353879,127.14,127.07,13.57240822]
[1743601669846,46.42353879,127.08,127.05,0.063]
[1743601670040,46.42353879,127.07,127.05,0.063]
[1743601670235,46.42353879,127.06,127.05,0.063]
[1743601670649,46.42353879,127.06,127.05,10.363]
[1743601672057,46.42353879,127.08,127.05,10.363]
[1743601672372,54.29373879,127.06,127.05,0.063]
[1743601672573,54.29373879,127.06,127.05,10.343]
[1743601672768,7.8702,127.06,127.05,304.523]
[1743601673073,54.29343879,127.07,127.05,304.523]
[1743601673369,54.29283879,127.08,127.05,318.09540822]
[1743601673731,46.42353879,127.09,127.05,318.09540822]
[1743601674271,46.42353879,127.08,127.05,318.09540822]
[1743601674560,7.8696,127.07,127.05,318.09540822]
[1743601674942,46.42353879,127.06,127.05,294.243]
[1743601675147,46.42353879,127.06,127.05,304.483]
[1743601676241,7.8696,127.07,127.05,304.483]
[1743601676450,46.42353879,127.07,127.05,304.483]
[1743601676637,7.869,127.08,127.05,304.483]
[1743601676841,54.29253879,127.08,127.05,304.483]
[1743601677055,46.42353879,127.07,127.05,304.483]
[1743601677247,46.42353879,127.06,127.05,304.483]
[1743601677552,46.42353879,127.06,127.05,294.3]
[1743601678060,46.42353879,127.06,127.05,294.363]
[1743601678438,73.96943879,127.06,127.05,294.3]
[1743601678637,73.96943879,127.06,127.0,0.063]
[1743601678860,46.42353879,127.02,127.01,10.2]
[1743601679163,46.42353879,127.02,127.0,0.063]
[1743601679368,27.5459,127.06,127.01,10.18]
[1743601679663,46.42353879,127.02,127.01,10.18]
[1743601680052,27.5459,127.06,127.01,10.18]
[1743601680568,106.83557758,127.02,127.0,0.063]
[1743601680759,46.42353879,126.98,126.94,0.66221085]
[1743601680964,7.8727,127.02,126.95,10.28]
[1743601681144,7.8727,127.02,126.98,0.66221085]
[1743601681340,46.42353879,127.01,126.98,0.66221085]
[1743601681568,46.42353879,127.0,126.98,0.66221085]
[1743601681869,7.8727,127.02,126.95,0.66221085]
[1743601681870,46.42353879,126.99,126.95,0.66221085]
[1743601682052,46.42353879,127.0,126.96,10.28]
[1743601682248,46.42353879,127.01,126.98,0.66221085]
[1743601682561,6.5423,127.06,126.98,0.66221085]
[1743601682562,7.8709,127.05,126.98,0.66221085]
[1743601682755,7.8709,127.05,127.0,0.66221085]
[1743601682951,46.42353879,127.04,127.0,0.66221085]
[1743601683266,46.42353879,127.06,127.02,0.66221085]
[1743601683577,7.8684,127.09,127.04,0.80437242]
[1743601683759,7.8665,127.12,127.06,0.66221085]
[1743601683960,46.42353879,127.1,127.06,0.66221085]
[1743601684144,46.42353879,127.09,127.06,0.66221085]
[1743601684569,54.29213879,127.09,127.06,0.66221085]
[1743601684771,46.42353879,127.07,127.02,0.66221085]
[1743601685071,27.5396,127.09,127.03,10.26]
[1743601685375,46.42353879,127.04,127.03,10.26]
[1743601685574,46.42353879,127.04,126.99,294.4]
[1743601685746,46.42353879,127.0,126.99,294.4]
[1743601686254,46.42353879,127.0,126.97,0.66221085]
[1743601686568,46.42353879,127.02,126.97,0.80437242]
[1743601686878,27.5437,127.07,127.02,0.66221085]
[1743601687374,46.42353879,127.03,127.0,0.66221085]
[1743601687546,46.42353879,127.02,126.98,10.92221085]
[1743601687741,46.42353879,127.03,126.98,10.92221085]
[1743601688072,27.5437,127.07,126.99,0.14216157]
[1743601688240,46.42353879,127.03,126.98,10.92221085]
[1743601688445,46.42353879,127.02,126.98,10.92221085]
[1743601688668,46.42353879,127.03,126.98,10.92221085]
[1743601688964,46.42353879,127.08,127.0,0.66221085]
[1743601689169,46.42353879,127.04,127.0,0.66221085]
[1743601689683,46.42353879,127.03,126.98,10.92221085]
[1743601690550,19.6742,127.07,127.0,0.66221085]
[1743601690755,54.29373879,127.06,127.02,0.66221085]
[1743601691071,54.29373879,127.06,127.0,0.66221085]
[1743601691072,0.063,127.03,127.0,0.66221085]
[1743601691550,0.063,127.03,127.02,0.66221085]
[1743601692653,0.063,127.03,127.02,295.06221085]
[1743601692851,0.063,127.03,127.02,295.20437242]
[1743601693260,0.063,127.03,127.02,0.66221085]
[1743601693464,0.063,127.03,127.0,0.66221085]
[1743601693750,30.98424444,127.03,127.01,10.22]
[1743601693952,30.92124444,127.02,127.01,10.22]
[1743601694166,30.92124444,127.02,126.98,0.69221085]
[1743601694351,30.92124444,127.0,126.98,0.03]
[1743601694553,30.92124444,126.99,126.98,0.03]
[1743601694762,38.79584444,126.99,126.98,0.03]
[1743601695158,38.79584444,126.99,126.98,10.23]
[1743601695753,58.48234444,126.99,126.92,0.72521085]
[1743601695953,27.5611,126.99,126.92,0.063]
[1743601696161,30.92124444,126.95,126.92,0.063]
[1743601696373,30.92124444,126.94,126.92,0.063]
[1743601696755,7.8783,126.93,126.92,0.063]
[1743601697070,38.79904444,126.94,126.92,10.243]
[1743601697277,30.92124444,126.94,126.92,10.243]
[1743601697454,7.8778,126.94,126.92,10.243]
[1743601697655,38.79904444,126.94,126.92,10.243]
[1743601697961,54.31937155,126.94,126.92,10.243]
[1743601698150,54.31897155,126.95,126.92,10.243]
[1743601698345,46.44157155,126.94,126.92,10.243]
[1743601698556,7.8746,126.99,126.92,10.90521085]
[1743601698766,19.6839,127.01,126.97,0.66221085]
[1743601699071,46.44157155,127.01,126.98,10.12]
[1743601699275,54.31427155,127.02,126.98,10.12]
[1743601699476,7.8727,127.02,126.99,0.66221085]
[1743601699678,0.063,127.03,127.01,0.66221085]
[1743601700866,0.063,127.03,127.02,0.66221085]
[1743601701074,0.063,127.03,127.0,0.66221085]
[1743601701276,0.063,127.03,126.98,10.78221085]
[1743601701581,46.50457155,127.03,126.99,10.14]
[1743601702578,0.063,127.02,126.99,10.14]
[1743601702759,0.063,127.02,127.0,295.12221085]
[1743601703862,0.063,127.02,127.01,0.14216157]
[1743601704062,0.063,127.02,127.01,18.79181043]
[1743601704264,0.063,127.02,127.0,0.66221085]
[1743601704875,0.063,127.02,127.0,0.80437242]
[1743601705081,0.063,127.02,127.0,8.67827242]
[1743601705775,0.063,127.02,127.01,18.64964886]
[1743601705983,0.063,127.02,127.01,0.14216157]
[1743601706575,0.063,127.02,127.0,0.80437242]
[1743601706972,0.063,127.02,127.0,0.66221085]
[1743601707963,0.063,127.02,127.01,0.14216157]
[1743601708255,0.063,127.02,127.01,18.79181043]
[1743601708665,0.063,127.02,127.0,8.53611085]
[1743601708878,0.063,127.02,127.0,0.80437242]
[1743601709086,0.063,127.02,127.01,10.0]
[1743601709297,0.063,127.02,127.01,10.14216157]
[1743601709658,0.063,127.02,127.01,10.0]
[1743601710799,46.50457155,127.02,126.98,0.03]
[1743601711095,7.9357,127.02,127.01,9.98]
[1743601711787,27.6176,127.02,126.98,0.03]
[1743601712302,46.44157155,126.99,126.98,0.03]
[1743601712902,74.05917155,127.02,126.98,294.45]
[1743601713186,46.44157155,127.0,126.99,9.96]
[1743601714370,27.6176,127.02,126.99,9.96]
[1743601714670,46.44157155,127.0,126.99,9.96]
[1743601715074,54.37857155,127.0,126.99,9.96]
[1743601716370,74.06357155,127.0,126.99,294.48]
[1743601716572,74.06357155,127.0,126.92,0.72521085]
[1743601716885,27.622,127.0,126.92,8.60411085]
[1743601717091,0.063,127.0,126.95,0.66221085]
[1743601717307,46.50457155,127.0,126.95,0.66221085]
[1743601717589,46.50457155,127.0,126.96,9.88]
[1743601717786,0.063,127.0,126.96,9.88]
[1743601717999,46.50457155,127.0,126.96,9.88]
[1743601718205,46.44157155,126.98,126.96,9.88]
[1743601718494,46.44157155,126.97,126.96,9.88]
[1743601719195,54.31737155,126.97,126.96,9.88]
[1743601719590,7.8758,126.97,126.96,9.88]
[1743601719775,38.82033776,126.97,126.96,9.88]
[1743601720378,7.8758,126.97,126.96,9.88]
[1743601720580,38.82033776,126.97,126.96,9.88]
[1743601721179,30.94453776,126.98,126.96,9.88]
[1743601721594,30.94453776,126.97,126.96,9.88]
[1743601722770,30.94453776,126.97,126.96,304.4]
[1743601722973,0.063,127.0,126.96,304.4]
[1743601723506,30.94453776,126.99,126.96,304.4]
[1743601723876,0.063,127.0,126.96,304.4]
[1743601724071,31.00753776,127.0,126.96,304.4]
[1743601724294,0.063,127.0,126.97,0.66221085]
[1743601725091,0.063,127.0,126.99,0.66221085]
[1743601725773,0.063,127.0,126.99,0.80437242]
[1743601725993,0.063,127.0,126.98,6.2344]
[1743601726174,0.063,127.0,126.97,0.66221085]
[1743601726996,0.063,127.0,126.97,8.53761085]
[1743601727174,0.063,127.0,126.99,0.66221085]
[1743601728599,0.063,127.0,126.98,0.03]
[1743601729579,0.063,127.0,126.99,0.66221085]
[1743601729895,0.063,127.0,126.98,0.03]
[1743601730288,0.063,127.0,126.99,0.66221085]
[1743601731277,0.063,127.0,126.98,0.03]
[1743601731792,0.063,127.0,126.99,0.66221085]
[1743601732381,0.063,127.0,126.99,19.45402128]
[1743601732880,0.063,127.0,126.99,313.95402128]
[1743601733583,0.063,127.0,126.99,321.82862128]
[1743601734516,0.063,127.0,126.99,27.82862128]
[1743601735780,0.063,127.02,127.01,7.31597242]
[1743601735979,7.8665,127.12,127.08,0.66221085]
[1743601736304,7.8959,127.13,127.1,0.66221085]
[1743601736488,0.03,127.13,127.12,39.45402128]
[1743601736682,0.03,127.13,127.12,39.95402128]
[1743601736880,0.03,127.13,127.12,39.45402128]
[1743601737382,0.03,127.13,127.12,49.19402128]
[1743601737585,0.03,127.13,127.12,57.06052128]
[1743601737888,0.063,127.15,127.14,19.31185971]
[1743601738400,0.063,127.15,127.14,0.66221085]
[1743601739086,0.063,127.15,127.12,10.40221085]
[1743601739506,0.063,127.15,127.13,9.78]
[1743601740385,0.063,127.15,127.14,19.45402128]
[1743601741103,0.063,127.15,127.14,0.66221085]
[1743601741492,0.063,127.15,127.14,10.56437242]
[1743601741900,0.063,127.15,127.14,10.42221085]
[1743601742398,7.8597,127.23,127.19,0.66221085]
[1743601742600,1.6098,127.26,127.21,0.66221085]
[1743601742908,0.03,127.26,127.23,0.66221085]
[1743601743206,0.03,127.26,127.25,0.66221085]
[1743601743507,0.03,127.26,127.25,19.31185971]
[1743601743685,0.03,127.26,127.25,0.66221085]
[1743601743886,0.03,127.26,127.25,0.80437242]
[1743601744101,0.03,127.26,127.25,27.31252128]
[1743601744696,0.03,127.26,127.25,37.11252128]
[1743601745000,7.8844,127.32,127.28,0.66221085]
[1743601745208,7.8844,127.32,127.3,0.66221085]
[1743601745399,7.8844,127.32,127.31,9.78]
[1743601745897,0.03,127.32,127.31,9.78]
[1743601746282,46.18769778,127.32,127.27,0.66221085]
[1743601746487,46.15769778,127.31,127.28,9.76]
[1743601746705,0.03,127.32,127.28,9.76]
[1743601746706,46.18769778,127.32,127.28,9.76]
[1743601746901,46.15769778,127.29,127.25,0.66221085]
[1743601747187,0.03,127.32,127.27,0.66221085]
[1743601747389,46.15769778,127.31,127.28,9.74]